[Event "57th Biel Festival ATO 2024"]
[Site "Biel"]
[Date "2024.07.19"]
[Round "4.39"]
[White "Ernst, Heinz"]
[Black "Wipf, Armin"]
[Result "1-0"]
[ECO "D61"]
[WhiteElo "1830"]
[BlackElo "1643"]
[Annotator "NA RC"]
[PlyCount "51"]
[EventDate "2024.07.03"]
[EventType "swiss"]
[EventCountry "SUI"]
[SourceTitle "playchess.com"]
[Source "ChessBase"]
[SourceQuality "1"]
[TimeControl "40/5400+30:1800+30"]

1. d4 {[%emt 0:00:45]} d5 {[%emt 0:00:30]} 2. c4 {[%emt 0:00:30]} e6 {[%emt 0:00:25]} 3. Nc3 {[%emt 0:00:18]} Nf6 {[%emt 0:00:19]} 4. Bg5 {[%emt 0:00:19]} Be7 {[%emt 0:01:23]} 5. e3 {[%emt 0:00:24]} O-O {[%emt 0:00:34]} 6. Nf3 {[%emt 0:00:30]} a6 {[%emt 0:00:40]} 7. cxd5 {[%emt 0:01:07]} exd5 {[%emt 0:00:45]} 8. Qc2 {[%emt 0:00:54]} c6 {[%emt 0:01:29]} 9. Bd3 {[%emt 0:00:54]} Nbd7 {[%emt 0:00:20]} 10. O-O {[%emt 0:01:03]} Re8 {[%emt 0:01:16]} 11. Rab1 {[%emt 0:04:50]} Ne4 {[%emt 0:03:29]} 12. Bxe7 {[%emt 0:04:33]} Qxe7 {[%emt 0:00:28]} 13. b4 {[%emt 0:01:39]} Ndf6 {[%emt 0:01:29]} 14. Ne5 {[%emt 0:08:53]} Nxc3 {[%emt 0:03:39]} 15. Qxc3 {[%emt 0:00:13]} Qd6 {[%emt 0:02:51]} 16. Qc5 {[%emt 0:06:55]} Qc7 {[%emt 0:05:16]} 17. Rfc1 {[%emt 0:03:44]} Nd7 {[%emt 0:01:36]} 18. Nxd7 {[%emt 0:04:14]} Qxd7 {[%emt 0:01:04]} 19. a4 {[%emt 0:02:35]} Qe7 {[%emt 0:03:27]} 20. b5 {[%emt 0:01:57]} axb5 {[%emt 0:07:27]} 21. axb5 {[%emt 0:02:18]} Qxc5 {[%emt 0:06:00]} 22. Rxc5 {[%emt 0:01:23]} Ra3 {[%emt 0:08:05]} 23. Bf1 {[%emt 0:03:46]} Bf5 {[%emt 0:03:10]} 24. Rbc1 {[%emt 0:00:35]} Rea8 {[%emt 0:01:57]} 25. bxc6 {[%emt 0:03:05]} bxc6 {[%emt 0:00:34]} 26. Rxc6 {[%emt 0:03:20]} 1-0

[Event "57th Biel Festival ATO 2024"]
[Site "Biel"]
[Date "2024.07.19"]
[Round "4.40"]
[White "Gotti, Nicola"]
[Black "Fernandez Van Raap, Marcela"]
[Result "1/2-1/2"]
[ECO "B13"]
[WhiteElo "1804"]
[BlackElo "1613"]
[Annotator "NA RC"]
[PlyCount "69"]
[EventDate "2024.07.03"]
[EventType "swiss"]
[EventCountry "SUI"]
[SourceTitle "playchess.com"]
[Source "ChessBase"]
[SourceQuality "1"]
[TimeControl "40/5400+30:1800+30"]

1. e4 {[%emt 0:00:04]} c6 {[%emt 0:00:08]} 2. d4 {[%emt 0:00:06]} d5 {[%emt 0:00:08]} 3. exd5 {[%emt 0:00:36]} cxd5 {[%emt 0:00:09]} 4. c4 {[%emt 0:00:15]} Nc6 {[%emt 0:00:58]} 5. Nc3 {[%emt 0:03:38]} Nf6 {[%emt 0:01:31]} 6. cxd5 {[%emt 0:05:23]} Nxd5 {[%emt 0:00:37]} 7. Bc4 {[%emt 0:01:06]} Nf6 {[%emt 0:05:48]} 8. d5 {[%emt 0:05:06]} Nb8 {[%emt 0:11:20]} 9. Nf3 {[%emt 0:05:11]} a6 {[%emt 0:03:28]} 10. Bg5 {[%emt 0:02:00]} Nbd7 {[%emt 0:04:45]} 11. a4 {[%emt 0:03:13]} g6 {[%emt 0:04:32]} 12. O-O {[%emt 0:02:34]} Bg7 {[%emt 0:00:24]} 13. Re1 {[%emt 0:03:02]} O-O {[%emt 0:00:11]} 14. d6 {[%emt 0:01:07]} exd6 {[%emt 0:03:41]} 15. Qxd6 {[%emt 0:03:55]} Qb6 {[%emt 0:01:08]} 16. Qxb6 {[%emt 0:10:58]} Nxb6 {[%emt 0:00:08]} 17. Bb3 {[%emt 0:02:50]} Nbd7 {[%emt 0:08:05]} 18. Rab1 {[%emt 0:02:33]} Nc5 {[%emt 0:01:23]} 19. Nd5 {[%emt 0:05:12]} Nxd5 {[%emt 0:01:41]} 20. Bxd5 {[%emt 0:00:12]} Ne6 {[%emt 0:09:18]} 21. Bd2 {[%emt 0:04:10]} Rb8 {[%emt 0:04:43]} 22. b3 {[%emt 0:03:33]} b5 {[%emt 0:06:02]} 23. Bc6 {[%emt 0:04:52]} Rb6 {[%emt 0:05:17]} 24. axb5 {[%emt 0:01:09]} axb5 {[%emt 0:00:14]} 25. Rbc1 {[%emt 0:01:42]} Bb7 {[%emt 0:00:40]} 26. Bxb7 {[%emt 0:02:59]} Rxb7 {[%emt 0:00:06]} 27. Bc3 {[%emt 0:02:39]} Rd8 {[%emt 0:04:20]} 28. Bxg7 {[%emt 0:02:23]} Kxg7 {[%emt 0:00:10]} 29. g3 {[%emt 0:01:26]} Rd3 {[%emt 0:01:50]} 30. Re3 {[%emt 0:00:09]} Rxe3 {[%emt 0:00:37]} 31. fxe3 {[%emt 0:00:36]} Rd7 {[%emt 0:01:27]} 32. Kf2 {[%emt 0:01:31]} Rd3 {[%emt 0:01:12]} 33. Rb1 {[%emt 0:01:06]} b4 {[%emt 0:01:38]} 34. Ke2 {[%emt 0:00:46]} Rc3 {[%emt 0:03:26]} 35. Kd2 {[%emt 0:01:47]} 1/2-1/2

[Event "57th Biel Festival ATO 2024"]
[Site "Biel"]
[Date "2024.07.19"]
[Round "4.41"]
[White "Trachsel, Peter"]
[Black "Harte, Bernd"]
[Result "0-1"]
[ECO "A28"]
[WhiteElo "1782"]
[BlackElo "1592"]
[Annotator "NA RC"]
[PlyCount "74"]
[EventDate "2024.07.03"]
[EventType "swiss"]
[EventCountry "SUI"]
[SourceTitle "playchess.com"]
[Source "ChessBase"]
[SourceQuality "1"]
[TimeControl "40/5400+30:1800+30"]

1. c4 {[%emt 0:00:05]} e5 {[%emt 0:00:20]} 2. Nc3 {[%emt 0:00:14]} Nf6 {[%emt 0:00:20]} 3. Nf3 {[%emt 0:00:23]} Nc6 {[%emt 0:00:28]} 4. e3 {[%emt 0:00:28]} Bb4 {[%emt 0:02:23]} 5. Qc2 {[%emt 0:01:49]} h6 {[%emt 0:01:54]} 6. Be2 {[%emt 0:01:16]} O-O {[%emt 0:00:30]} 7. O-O {[%emt 0:00:34]} d6 {[%emt 0:03:07]} 8. d3 {[%emt 0:03:41]} b6 {[%emt 0:02:03]} 9. Nd5 {[%emt 0:04:39]} Nxd5 {[%emt 0:02:26]} 10. cxd5 {[%emt 0:00:52]} Ne7 {[%emt 0:01:06]} 11. Qc4 {[%emt 0:00:53]} Bc5 {[%emt 0:01:38]} 12. e4 {[%emt 0:03:47]} a5 {[%emt 0:01:48]} 13. b3 {[%emt 0:02:33]} Ba6 {[%emt 0:00:29]} 14. Qc2 {[%emt 0:00:33]} c6 {[%emt 0:00:43]} 15. dxc6 {[%emt 0:06:21]} Nxc6 {[%emt 0:00:27]} 16. Bb2 {[%emt 0:00:25]} Rc8 {[%emt 0:01:25]} 17. Rfc1 {[%emt 0:04:58]} Nd4 {[%emt 0:08:45]} 18. Qd1 {[%emt 0:03:23]} Nxe2+ {[%emt 0:04:07]} 19. Qxe2 {[%emt 0:00:29]} Re8 {[%emt 0:06:16]} 20. a3 {[%emt 0:04:56]} Bb7 {[%emt 0:04:58]} 21. Qd2 {[%emt 0:01:29]} b5 {[%emt 0:02:02]} 22. b4 {[%emt 0:02:15]} axb4 {[%emt 0:00:39]} 23. axb4 {[%emt 0:00:46]} Bb6 {[%emt 0:00:24]} 24. Rxc8 {[%emt 0:04:28]} Qxc8 {[%emt 0:00:28]} 25. Nh4 {[%emt 0:01:51]} Qd7 {[%emt 0:02:25]} 26. Nf5 {[%emt 0:01:22]} Kh7 {[%emt 0:02:48]} 27. Kh1 {[%emt 0:07:55]} d5 {[%emt 0:01:42]} 28. Qe2 {[%emt 0:00:50]} dxe4 {[%emt 0:02:12]} 29. dxe4 {[%emt 0:00:44]} Bd4 {[%emt 0:04:27]} 30. Nxd4 {[%emt 0:08:13]} exd4 {[%emt 0:00:34]} 31. f3 {[%emt 0:00:58]} f5 {[%emt 0:01:05]} 32. e5 {[%emt 0:12:31]} Qd5 {[%emt 0:04:12]} 33. f4 {[%emt 0:01:01]} g5 {[%emt 0:00:29]} 34. Qf2 {[%emt 0:01:38]} gxf4 {[%emt 0:04:44]} 35. Bxd4 {[%emt 0:01:56]} Rg8 {[%emt 0:02:04]} 36. Rg1 {[%emt 0:00:53]} f3 {[%emt 0:01:27]} 37. g3 {[%emt 0:04:38]} Qxd4 {[%emt 0:02:03]} 0-1

[Event "57th Biel Festival ATO 2024"]
[Site "Biel"]
[Date "2024.07.20"]
[Round "5.1"]
[White "Kuenzi, Anton"]
[Black "Andrzejewska, Anna"]
[Result "0-1"]
[ECO "A07"]
[WhiteElo "1862"]
[BlackElo "1933"]
[Annotator "NA"]
[PlyCount "78"]
[EventDate "2024.07.03"]
[EventType "swiss"]
[EventCountry "SUI"]
[SourceTitle "playchess.com"]
[Source "ChessBase"]
[SourceQuality "1"]
[TimeControl "40/5400+30:1800+30"]

1. Nf3 {[%emt 0:00:18]} Nf6 {[%emt 0:00:06]} 2. b3 {[%emt 0:00:04]} d5 {[%emt 0:00:21]} 3. Bb2 {[%emt 0:01:12]} Bf5 {[%emt 0:00:17]} 4. g3 {[%emt 0:00:33]} e6 {[%emt 0:00:11]} 5. Bg2 {[%emt 0:00:06]} h6 {[%emt 0:00:24]} 6. O-O {[%emt 0:01:02]} Be7 {[%emt 0:00:46]} 7. d3 {[%emt 0:00:12]} O-O {[%emt 0:04:08]} 8. Nbd2 {[%emt 0:00:17]} Bh7 {[%emt 0:01:36]} 9. c4 {[%emt 0:05:03]} c5 {[%emt 0:02:21]} 10. cxd5 {[%emt 0:03:08]} exd5 {[%emt 0:02:32]} 11. d4 {[%emt 0:00:34]} b6 {[%emt 0:04:36]} 12. Ne5 {[%emt 0:03:55]} Qc7 {[%emt 0:06:08]} 13. Rc1 {[%emt 0:10:29]} Nc6 {[%emt 0:07:56]} 14. Nxc6 {[%emt 0:14:53]} Qxc6 {[%emt 0:00:05]} 15. b4 {[%emt 0:01:55]} Qb5 {[%emt 0:07:45]} 16. dxc5 {[%emt 0:05:15]} Qxb4 {[%emt 0:12:14]} 17. Bc3 {[%emt 0:12:07]} Qa3 {[%emt 0:02:20]} 18. Bxf6 {[%emt 0:00:24]} Bxf6 {[%emt 0:00:35]} 19. Bxd5 {[%emt 0:07:28]} Rad8 {[%emt 0:01:06]} 20. e4 {[%emt 0:02:50]} bxc5 {[%emt 0:14:39]} 21. Qb3 {[%emt 0:04:29]} Qa5 {[%emt 0:04:50]} 22. Nc4 {[%emt 0:07:29]} Qc7 {[%emt 0:00:42]} 23. Ne3 {[%emt 0:02:53]} Qe7 {[%emt 0:07:01]} 24. Rfe1 {[%emt 0:03:33]} Rb8 {[%emt 0:04:53]} 25. Qc4 {[%emt 0:02:19]} Rb4 {[%emt 0:01:18]} 26. Qxc5 {[%emt 0:00:53]} Qxc5 {[%emt 0:00:30]} 27. Rxc5 {[%emt 0:00:05]} Bxe4 {[%emt 0:00:45]} 28. Ng4 {[%emt 0:06:06]} Be7 {[%emt 0:04:38]} 29. Ra5 {[%emt 0:04:15]} Bd8 {[%emt 0:01:52]} 30. a3 {[%emt 0:01:06]} Rd4 {[%emt 0:01:05]} 31. Bxf7+ {[%emt 0:00:32]} Rxf7 {[%emt 0:01:28]} 32. Re5 {[%emt 0:00:16]} Bb7 {[%emt 0:01:05]} 33. Re8+ {[%emt 0:01:14]} Kh7 {[%emt 0:00:57]} 34. Ne5 {[%emt 0:00:01]} Re7 {[%emt 0:00:40]} 35. Rh8+ {[%emt 0:00:31]} Kxh8 {[%emt 0:00:10]} 36. Ng6+ {[%emt 0:00:06]} Kh7 {[%emt 0:00:54]} 37. Nxe7 {[%emt 0:00:01]} Bxe7 {[%emt 0:00:08]} 38. f3 {[%emt 0:00:57]} Bc5 {[%emt 0:01:17]} 39. Kg2 {[%emt 0:00:08]} Rd2+ {[%emt 0:00:24]} 0-1

[Event "57th Biel Festival ATO 2024"]
[Site "Biel"]
[Date "2024.07.20"]
[Round "5.2"]
[White "Nasybullina, Alfia"]
[Black "Kalbermatter, Philipp"]
[Result "1-0"]
[ECO "B01"]
[WhiteElo "1997"]
[BlackElo "1912"]
[Annotator "NA"]
[PlyCount "77"]
[EventDate "2024.07.03"]
[EventType "swiss"]
[EventCountry "SUI"]
[SourceTitle "playchess.com"]
[Source "ChessBase"]
[SourceQuality "1"]
[TimeControl "40/5400+30:1800+30"]

1. e4 {[%emt 0:00:04]} d5 {[%emt 0:00:31]} 2. exd5 {[%emt 0:00:09]} Qxd5 {[%emt 0:00:36]} 3. Nc3 {[%emt 0:00:08]} Qd8 {[%emt 0:00:54]} 4. d4 {[%emt 0:01:17]} Nf6 {[%emt 0:00:50]} 5. Nf3 {[%emt 0:01:13]} Bg4 {[%emt 0:02:06]} 6. Bc4 {[%emt 0:01:06]} e6 {[%emt 0:01:55]} 7. Bg5 {[%emt 0:03:01]} c6 {[%emt 0:02:48]} 8. O-O {[%emt 0:05:51]} Be7 {[%emt 0:02:46]} 9. Bxf6 {[%emt 0:06:08]} gxf6 {[%emt 0:06:58]} 10. h3 {[%emt 0:03:41]} Bh5 {[%emt 0:07:08]} 11. Ne4 {[%emt 0:01:47]} Nd7 {[%emt 0:07:49]} 12. b4 {[%emt 0:06:50]} f5 {[%emt 0:07:39]} 13. Ng3 {[%emt 0:00:30]} Bxf3 {[%emt 0:05:52]} 14. Qxf3 {[%emt 0:00:22]} Nb6 {[%emt 0:03:44]} 15. Bb3 {[%emt 0:02:15]} Qc7 {[%emt 0:10:01]} 16. b5 {[%emt 0:08:29]} O-O {[%emt 0:05:35]} 17. bxc6 {[%emt 0:03:37]} bxc6 {[%emt 0:02:02]} 18. Nh5 {[%emt 0:02:49]} Nd5 {[%emt 0:02:05]} 19. c4 {[%emt 0:03:26]} Nf6 {[%emt 0:00:32]} 20. Nf4 {[%emt 0:01:50]} Kh8 {[%emt 0:01:45]} 21. d5 {[%emt 0:01:29]} cxd5 {[%emt 0:00:58]} 22. cxd5 {[%emt 0:00:10]} Bd6 {[%emt 0:10:21]} 23. Rac1 {[%emt 0:03:00]} Qb8 {[%emt 0:03:06]} 24. Nh5 {[%emt 0:04:46]} Nxh5 {[%emt 0:01:28]} 25. Qxh5 {[%emt 0:00:16]} Qd8 {[%emt 0:01:40]} 26. Rcd1 {[%emt 0:01:37]} Qe7 {[%emt 0:02:26]} 27. Rfe1 {[%emt 0:05:16]} e5 {[%emt 0:02:41]} 28. Qxf5 {[%emt 0:01:09]} Rac8 {[%emt 0:00:56]} 29. Re4 {[%emt 0:03:30]} Rc7 {[%emt 0:00:23]} 30. g3 {[%emt 0:01:52]} Rg8 {[%emt 0:00:36]} 31. Rg4 {[%emt 0:02:10]} Rxg4 {[%emt 0:00:21]} 32. hxg4 {[%emt 0:00:09]} f6 {[%emt 0:01:05]} 33. Kg2 {[%emt 0:01:18]} Qg7 {[%emt 0:00:39]} 34. Rh1 {[%emt 0:00:36]} Qe7 {[%emt 0:01:36]} 35. Rh6 {[%emt 0:01:19]} Qg7 {[%emt 0:02:12]} 36. Rxf6 {[%emt 0:00:48]} Rd7 {[%emt 0:00:58]} 37. g5 {[%emt 0:01:24]} Be7 {[%emt 0:02:30]} 38. Qxd7 {[%emt 0:00:34]} Bxf6 {[%emt 0:00:08]} 39. Qe8+ {[%emt 0:00:07]} 1-0

[Event "57th Biel Festival ATO 2024"]
[Site "Biel"]
[Date "2024.07.20"]
[Round "5.3"]
[White "Conrad, Vincent"]
[Black "Noh, Jinwoo"]
[Result "0-1"]
[ECO "E04"]
[WhiteElo "1931"]
[BlackElo "1824"]
[Annotator "NA"]
[PlyCount "54"]
[EventDate "2024.07.03"]
[EventType "swiss"]
[EventCountry "SUI"]
[SourceTitle "playchess.com"]
[Source "ChessBase"]
[SourceQuality "1"]
[TimeControl "40/5400+30:1800+30"]

1. Nf3 {[%emt 0:00:09]} Nf6 {[%emt 0:00:33]} 2. d4 {[%emt 0:00:16]} d5 {[%emt 0:00:27]} 3. c4 {[%emt 0:00:09]} e6 {[%emt 0:00:25]} 4. g3 {[%emt 0:00:59]} dxc4 {[%emt 0:10:43]} 5. Bg2 {[%emt 0:23:26]} Nc6 {[%emt 0:13:34]} 6. O-O {[%emt 0:00:30]} Rb8 {[%emt 0:00:30]} 7. Ne5 {[%emt 0:00:30]} Nxe5 {[%emt 0:00:30]} 8. dxe5 {[%emt 0:00:30]} Nd5 {[%emt 0:00:30]} 9. Qc2 {[%emt 0:00:30]} Be7 {[%emt 0:00:30]} 10. Rd1 {[%emt 0:00:30]} O-O {[%emt 0:00:30]} 11. a3 {[%emt 0:00:30]} Qe8 {[%emt 0:00:30]} 12. Qxc4 {[%emt 0:05:57]} b5 {[%emt 0:02:35]} 13. Qc2 {[%emt 0:05:41]} c5 {[%emt 0:09:18]} 14. Nd2 {[%emt 0:00:18]} Bb7 {[%emt 0:02:48]} 15. Ne4 {[%emt 0:00:36]} Qc6 {[%emt 0:04:37]} 16. Bd2 {[%emt 0:26:01]} Qc7 {[%emt 0:03:58]} 17. Nd6 {[%emt 0:08:09]} Ba6 {[%emt 0:12:27]} 18. e4 {[%emt 0:04:38]} Nb6 {[%emt 0:00:42]} 19. Ba5 {[%emt 0:01:44]} f6 {[%emt 0:03:10]} 20. Rac1 {[%emt 0:01:34]} fxe5 {[%emt 0:00:53]} 21. Qxc5 {[%emt 0:00:31]} Qxc5 {[%emt 0:00:20]} 22. Rxc5 {[%emt 0:00:06]} Nc4 {[%emt 0:00:04]} 23. Rxc4 {[%emt 0:01:13]} bxc4 {[%emt 0:00:26]} 24. Bb4 {[%emt 0:00:30]} Rfd8 {[%emt 0:00:43]} 25. Bh3 {[%emt 0:00:14]} Rxb4 {[%emt 0:00:14]} 26. Bxe6+ {[%emt 0:00:56]} Kf8 {[%emt 0:00:03]} 27. axb4 {[%emt 0:00:10]} Rxd6 {[%emt 0:00:15]} 0-1

[Event "57th Biel Festival ATO 2024"]
[Site "Biel"]
[Date "2024.07.20"]
[Round "5.4"]
[White "Oestmann, Lukas"]
[Black "Primbetova, Raikhan"]
[Result "1-0"]
[ECO "C07"]
[WhiteElo "1926"]
[BlackElo "1534"]
[Annotator "NA"]
[PlyCount "50"]
[EventDate "2024.07.03"]
[EventType "swiss"]
[EventCountry "SUI"]
[SourceTitle "playchess.com"]
[Source "ChessBase"]
[SourceQuality "1"]
[TimeControl "40/5400+30:1800+30"]

1. e4 {[%emt 0:00:02]} e6 {[%emt 0:00:03]} 2. d4 {[%emt 0:00:04]} d5 {[%emt 0:00:04]} 3. Nd2 {[%emt 0:00:05]} c5 {[%emt 0:00:08]} 4. exd5 {[%emt 0:00:05]} Qxd5 {[%emt 0:00:16]} 5. Ngf3 {[%emt 0:00:13]} cxd4 {[%emt 0:01:13]} 6. Bc4 {[%emt 0:00:09]} Qd6 {[%emt 0:02:59]} 7. O-O {[%emt 0:00:10]} Nf6 {[%emt 0:00:30]} 8. Nb3 {[%emt 0:00:18]} Nc6 {[%emt 0:00:24]} 9. Nbxd4 {[%emt 0:00:12]} Nxd4 {[%emt 0:02:05]} 10. Nxd4 {[%emt 0:00:12]} Be7 {[%emt 0:08:20]} 11. Nb5 {[%emt 0:04:22]} Qc6 {[%emt 0:01:55]} 12. b3 {[%emt 0:00:50]} O-O {[%emt 0:01:03]} 13. Bb2 {[%emt 0:02:15]} Rd8 {[%emt 0:03:44]} 14. Qe2 {[%emt 0:01:30]} a6 {[%emt 0:09:07]} 15. Nd4 {[%emt 0:05:59]} Qb6 {[%emt 0:05:50]} 16. Nf5 {[%emt 0:09:39]} Qc5 {[%emt 0:05:17]} 17. Nxe7+ {[%emt 0:02:14]} Qxe7 {[%emt 0:00:07]} 18. Bd3 {[%emt 0:01:40]} Ra7 {[%emt 0:17:02]} 19. Qe3 {[%emt 0:19:35]} b5 {[%emt 0:02:03]} 20. a4 {[%emt 0:01:50]} b4 {[%emt 0:10:33]} 21. Bd4 {[%emt 0:08:39]} Ng4 {[%emt 0:04:47]} 22. Qh3 {[%emt 0:01:24]} h5 {[%emt 0:09:57]} 23. Qxh5 {[%emt 0:03:38]} Nf6 {[%emt 0:00:00]} 24. Qh4 {[%emt 0:01:32]} Qd6 {[%emt 0:00:44]} 25. Rfd1 {[%emt 0:07:16]} Qe7 {[%emt 0:00:17]} 1-0

[Event "57th Biel Festival ATO 2024"]
[Site "Biel"]
[Date "2024.07.20"]
[Round "5.5"]
[White "Meshach, Felix"]
[Black "Kuenzli, Simon"]
[Result "1-0"]
[ECO "B12"]
[WhiteElo "1773"]
[BlackElo "1919"]
[Annotator "RC"]
[PlyCount "29"]
[EventDate "2024.07.03"]
[EventType "swiss"]
[EventCountry "SUI"]
[SourceTitle "playchess.com"]
[Source "ChessBase"]
[SourceQuality "1"]
[TimeControl "40/5400+30:1800+30"]

1. e4 {[%emt 0:00:05]} c6 {[%emt 0:00:06]} 2. d4 {[%emt 0:00:57]} d5 {[%emt 0:00:05]} 3. f3 {[%emt 0:00:32]} dxe4 {[%emt 0:01:32]} 4. fxe4 {[%emt 0:00:13]} e5 {[%emt 0:02:35]} 5. Nf3 {[%emt 0:00:05]} exd4 {[%emt 0:00:30]} 6. Bc4 {[%emt 0:00:08]} Nf6 {[%emt 0:00:45]} 7. O-O {[%emt 0:00:07]} Be6 {[%emt 0:01:44]} 8. Bxe6 {[%emt 0:07:20]} fxe6 {[%emt 0:00:08]} 9. e5 {[%emt 0:03:57]} Nfd7 {[%emt 0:11:31]} 10. Ng5 {[%emt 0:14:26]} Qb6 {[%emt 0:06:36]} 11. Nxe6 {[%emt 0:02:06]} c5 {[%emt 0:06:15]} 12. Qg4 {[%emt 0:06:22]} Nc6 {[%emt 0:06:04]} 13. Bg5 {[%emt 0:10:55]} Ncxe5 {[%emt 0:09:33]} 14. Nc7+ {[%emt 0:00:54]} Qxc7 {[%emt 0:00:57]} 15. Qe6+ {[%emt 0:00:07]} 1-0

[Event "57th Biel Festival ATO 2024"]
[Site "Biel"]
[Date "2024.07.20"]
[Round "5.6"]
[White "Yu, Tianxiang Carlos"]
[Black "Bangerter, Daria"]
[Result "1-0"]
[ECO "B27"]
[WhiteElo "1769"]
[BlackElo "1931"]
[Annotator "ChessBase"]
[PlyCount "116"]
[EventDate "2024.07.03"]
[EventType "swiss"]
[EventCountry "SUI"]
[SourceTitle "playchess.com"]
[Source "ChessBase"]
[SourceQuality "1"]
[TimeControl "40/5400+30:1800+30"]

1. e4 {[%emt 0:00:04]} c5 {[%emt 0:00:08]} 2. Nf3 {[%emt 0:00:16]} g6 {[%emt 0:00:16]} 3. d4 {[%emt 0:00:20]} cxd4 {[%emt 0:00:04]} 4. Qxd4 {[%emt 0:00:06]} Nf6 {[%emt 0:00:06]} 5. Nc3 {[%emt 0:00:04]} Nc6 {[%emt 0:00:25]} 6. Qa4 {[%emt 0:00:04]} d6 {[%emt 0:00:37]} 7. e5 {[%emt 0:00:03]} dxe5 {[%emt 0:00:21]} 8. Nxe5 {[%emt 0:00:05]} Bd7 {[%emt 0:00:30]} 9. Nxd7 {[%emt 0:00:08]} Nxd7 {[%emt 0:01:59]} 10. Be3 {[%emt 0:01:27]} Bg7 {[%emt 0:03:19]} 11. Rd1 {[%emt 0:01:59]} O-O {[%emt 0:12:59]} 12. Be2 {[%emt 0:00:26]} e6 {[%emt 0:08:53]} 13. O-O {[%emt 0:00:59]} Qe7 {[%emt 0:03:34]} 14. Rd2 {[%emt 0:14:08]} Rac8 {[%emt 0:13:07]} 15. Ne4 {[%emt 0:16:26]} Nb6 {[%emt 0:17:32]} 16. Qb5 {[%emt 0:08:54]} Qb4 {[%emt 0:07:32]} 17. Qxb4 {[%emt 0:20:10]} Nxb4 {[%emt 0:00:07]} 18. Bc5 {[%emt 0:08:45]} Rxc5 {[%emt 0:05:13]} 19. Nxc5 {[%emt 0:01:01]} Bxb2 {[%emt 0:01:38]} 20. Nxb7 {[%emt 0:06:00]} Bc3 {[%emt 0:05:04]} 21. Rd8 {[%emt 0:00:59]} Nxa2 {[%emt 0:02:18]} 22. Bd3 {[%emt 0:02:05]} Rxd8 {[%emt 0:04:13]} 23. Nxd8 {[%emt 0:00:02]} a5 {[%emt 0:01:11]} 24. Rb1 {[%emt 0:02:06]} Nb4 {[%emt 0:03:14]} 25. Nc6 {[%emt 0:01:18]} N6d5 {[%emt 0:02:16]} 26. Nxb4 {[%emt 0:00:22]} axb4 {[%emt 0:05:35]} 27. Bc4 {[%emt 0:00:23]} Kg7 {[%emt 0:01:12]} 28. Rd1 {[%emt 0:00:59]} Ne7 {[%emt 0:00:11]} 29. g4 {[%emt 0:00:51]} Nc6 {[%emt 0:00:36]} 30. Bb3 {[%emt 0:02:50]} Ne5 {[%emt 0:00:41]} 31. h3 {[%emt 0:00:20]} Nf3+ {[%emt 0:00:14]} 32. Kg2 {[%emt 0:00:10]} Nd4 {[%emt 0:00:30]} 33. f4 {[%emt 0:01:19]} Kf6 {[%emt 0:00:40]} 34. Kf2 {[%emt 0:00:09]} Ke7 {[%emt 0:00:40]} 35. Ke3 {[%emt 0:00:07]} Nb5 {[%emt 0:00:23]} 36. Ba4 {[%emt 0:00:57]} Nd6 {[%emt 0:00:30]} 37. Kf3 {[%emt 0:01:18]} f6 {[%emt 0:00:34]} 38. h4 {[%emt 0:00:12]} e5 {[%emt 0:00:22]} 39. fxe5 {[%emt 0:00:40]} Bxe5 {[%emt 0:00:31]} 40. Rd5 {[%emt 0:03:13]} Bc3 {[%emt 0:00:33]} 41. Ra5 {[%emt 0:32:07]} Bd4 {[%emt 0:11:08]} 42. Ra8 {[%emt 0:00:00]} f5 {[%emt 0:06:02]} 43. g5 {[%emt 0:00:00]} Bg7 {[%emt 0:07:57]} 44. Rb8 {[%emt 0:00:00]} Bc3 {[%emt 0:02:49]} 45. Bb3 {[%emt 0:00:00]} Be1 {[%emt 0:02:37]} 46. Rh8 {[%emt 0:00:00]} Ne4 {[%emt 0:02:34]} 47. Rxh7+ {[%emt 0:00:00]} Kf8 {[%emt 0:00:22]} 48. Kg2 {[%emt 0:03:49]} Nd6 {[%emt 0:00:36]} 49. Kh3 {[%emt 0:00:21]} Bc3 {[%emt 0:00:26]} 50. Rd7 {[%emt 0:00:40]} Ne4 {[%emt 0:00:29]} 51. Bf7 {[%emt 0:04:52]} Nf2+ {[%emt 0:00:36]} 52. Kg2 {[%emt 0:00:36]} Ng4 {[%emt 0:00:20]} 53. Bxg6 {[%emt 0:01:43]} Ne3+ {[%emt 0:00:36]} 54. Kf3 {[%emt 0:00:20]} Nxc2 {[%emt 0:00:12]} 55. Bxf5 {[%emt 0:00:46]} Nd4+ {[%emt 0:00:20]} 56. Ke4 {[%emt 0:00:28]} Kg8 {[%emt 0:00:45]} 57. h5 {[%emt 0:00:00]} Kf8 {[%emt 0:00:31]} 58. h6 {[%emt 0:00:00]} Kg8 {[%emt 0:00:25]} 1-0

[Event "57th Biel Festival ATO 2024"]
[Site "Biel"]
[Date "2024.07.20"]
[Round "5.7"]
[White "Wiesmann, Dominique"]
[Black "Galopin, Clement"]
[Result "1-0"]
[ECO "E14"]
[WhiteElo "1963"]
[BlackElo "1816"]
[Annotator "NA"]
[PlyCount "59"]
[EventDate "2024.07.03"]
[EventType "swiss"]
[EventCountry "SUI"]
[SourceTitle "playchess.com"]
[Source "ChessBase"]
[SourceQuality "1"]
[TimeControl "40/5400+30:1800+30"]

1. Nf3 {[%emt 0:00:05]} Nf6 {[%emt 0:01:35]} 2. e3 {[%emt 0:00:16]} e6 {[%emt 0:01:23]} 3. d4 {[%emt 0:01:39]} b6 {[%emt 0:00:20]} 4. c4 {[%emt 0:00:30]} Bb7 {[%emt 0:00:58]} 5. Bd3 {[%emt 0:02:52]} Ne4 {[%emt 0:06:28]} 6. O-O {[%emt 0:01:34]} f5 {[%emt 0:00:10]} 7. Nfd2 {[%emt 0:07:25]} c5 {[%emt 0:02:19]} 8. Nxe4 {[%emt 0:03:52]} fxe4 {[%emt 0:00:43]} 9. Bc2 {[%emt 0:00:45]} Qg5 {[%emt 0:04:25]} 10. Nc3 {[%emt 0:01:34]} d5 {[%emt 0:02:45]} 11. f3 {[%emt 0:04:54]} Bd6 {[%emt 0:10:00]} 12. fxe4 {[%emt 0:04:52]} dxe4 {[%emt 0:01:03]} 13. Nb5 {[%emt 0:01:39]} Qe7 {[%emt 0:20:17]} 14. Nxd6+ {[%emt 0:02:08]} Qxd6 {[%emt 0:00:05]} 15. Qg4 {[%emt 0:08:36]} Nd7 {[%emt 0:01:19]} 16. Bxe4 {[%emt 0:07:11]} O-O-O {[%emt 0:04:14]} 17. Bxb7+ {[%emt 0:01:37]} Kxb7 {[%emt 0:00:02]} 18. Bd2 {[%emt 0:00:56]} Qe7 {[%emt 0:09:08]} 19. Qe4+ {[%emt 0:06:15]} Kc7 {[%emt 0:04:22]} 20. Be1 {[%emt 0:00:17]} Nf6 {[%emt 0:02:29]} 21. Bg3+ {[%emt 0:01:08]} Kd7 {[%emt 0:00:11]} 22. Qb7+ {[%emt 0:03:10]} Ke8 {[%emt 0:00:01]} 23. Qxe7+ {[%emt 0:02:04]} Kxe7 {[%emt 0:00:02]} 24. dxc5 {[%emt 0:02:00]} bxc5 {[%emt 0:00:54]} 25. Rad1 {[%emt 0:01:36]} Ne4 {[%emt 0:00:29]} 26. Be5 {[%emt 0:00:37]} Nf6 {[%emt 0:00:46]} 27. h3 {[%emt 0:02:39]} h5 {[%emt 0:01:39]} 28. Kf2 {[%emt 0:04:27]} Rhf8 {[%emt 0:05:09]} 29. Ke2 {[%emt 0:00:40]} g6 {[%emt 0:00:30]} 30. Rxd8 {[%emt 0:00:11]} 1-0